bitfinex-derivatives/quotes_ETHF0:USTF0_20251007
["timestamp","ask_amount","ask_price","bid_price","bid_amount"]
[1759846214768,2.16421841,4670.5,4669.0,3.5988]
[1759846215067,2.16421841,4670.5,4668.4,1.90362947]
[1759846215068,0.38526,4668.9,4668.5,1.75561903]
[1759846215268,2.16421841,4669.1,4668.4,4.1502]
[1759846215269,0.38529,4668.5,4668.4,2.47201903]
[1759846215470,2.54950841,4668.5,4668.4,2.47201903]
[1759846215671,0.38532,4668.1,4668.0,1.52961903]
[1759846215873,2.55116144,4668.1,4668.0,0.00188971]
[1759846216177,2.16421841,4668.0,4667.9,2.85e-06]
[1759846217276,2.16421841,4668.0,4667.9,0.00240144]
[1759846218082,2.16421841,4668.0,4667.9,0.94480144]
[1759846218284,7.16421841,4668.0,4667.9,0.00240144]
[1759846218689,10.01268647,4668.0,4667.9,0.00240144]
[1759846218980,0.38545,4666.6,4666.4,0.9424]
[1759846219176,0.38543,4666.8,4666.2,0.77647]
[1759846219376,2.16421841,4666.9,4666.7,0.38543]
[1759846219581,3.2078,4667.4,4666.8,0.9424]
[1759846219779,2.16421841,4667.1,4666.9,0.9424]
[1759846219990,3.2078,4667.9,4666.9,0.77642]
[1759846220279,0.38542,4666.9,4666.8,0.00236402]
[1759846220481,5.75743841,4666.9,4666.8,0.00236402]
[1759846220779,0.38553,4665.7,4665.3,0.38555]
[1759846220976,0.96361,4666.7,4665.2,1.3424]
[1759846220977,0.96373,4666.1,4665.2,1.3424]
[1759846221176,0.38555,4665.4,4665.3,0.9424]
[1759846221483,0.38555,4665.4,4665.2,0.4]
[1759846221682,2.16421841,4665.3,4665.2,0.4]
[1759846221878,3.2078,4665.6,4665.2,1.3424]
[1759846222076,0.226,4666.5,4665.5,1.3334]
[1759846222283,0.226,4666.5,4665.2,0.4]
[1759846222284,0.38555,4665.3,4665.2,0.4]
[1759846222678,2.16421841,4665.3,4665.2,0.4]
[1759846222877,0.226,4665.8,4665.2,0.4]
[1759846223077,0.38552,4665.8,4665.5,0.77654]
[1759846223281,0.38555,4665.3,4665.2,0.4]
[1759846223482,2.16421841,4665.3,4665.2,1.3424]
[1759846223681,2.8133701,4665.9,4665.3,1.32795]
[1759846223988,3.2078,4666.0,4665.3,0.9424]
[1759846224176,3.2078,4666.0,4665.2,0.4]
[1759846224177,0.38555,4665.3,4665.2,0.4]
[1759846224377,2.16421841,4665.3,4665.2,1.3424]
[1759846224588,3.4328,4666.0,4665.2,1.3424]
[1759846224884,5.37201841,4665.3,4663.7,3.2078]
[1759846225076,2.72914753,4665.9,4661.9,3.2078]
[1759846225077,3.2078,4663.9,4661.9,3.2078]
[1759846225275,3.2078,4663.9,4661.4,0.9424]
[1759846225276,3.2078,4662.5,4661.4,3.2078]
[1759846225478,0.226,4662.4,4661.4,4.1502]
[1759846225685,2.16421841,4661.8,4661.5,0.9424]
[1759846225884,0.226,4662.4,4661.5,0.9424]
[1759846226081,2.16421841,4661.6,4661.5,0.9424]
[1759846226283,0.226,4661.6,4660.3,2.00228154]
[1759846226588,5.37201841,4661.2,4660.9,0.9424]
[1759846226885,0.3859,4661.1,4660.8,0.391]
[1759846227188,0.38591,4661.0,4660.9,0.9424]
[1759846227499,0.38594,4660.6,4660.3,0.47266251]
[1759846227690,5.37201841,4660.4,4660.3,1.41506251]
[1759846227885,5.37201841,4660.4,4660.0,0.391]
[1759846228086,2.16421841,4660.1,4660.0,1.3334]
[1759846228393,3.2078,4660.4,4660.1,0.9424]
[1759846228689,4.91524384,4660.1,4660.0,1.3334]
[1759846228884,2.16421841,4660.1,4660.0,1.3334]
[1759846229387,4.91524384,4660.1,4660.0,0.391]
[1759846229685,0.38605,4659.3,4658.8,0.9424]
[1759846229889,0.38607,4659.1,4658.5,0.9424]
[1759846230187,3.2078,4659.5,4659.2,0.77705]
[1759846230390,3.2078,4659.5,4659.4,0.9424]
[1759846230687,0.227,4660.6,4660.0,1.3334]
[1759846230688,3.2078,4660.1,4660.0,1.3334]
[1759846230886,3.2078,4660.1,4657.9,0.02146913]
[1759846230887,2.8037573,4659.5,4657.9,0.02146913]
[1759846231084,0.38613,4658.4,4658.0,0.9424]
[1759846231284,3.2078,4658.5,4657.9,0.02146913]
[1759846231484,3.2078,4658.0,4657.9,0.02146913]
[1759846231688,3.2078,4658.0,4656.8,0.391]
[1759846231689,5.75817841,4658.0,4657.1,0.9424]
[1759846231888,2.16421841,4657.7,4657.6,1.3334]
[1759846232087,3.2078,4658.0,4657.8,0.9424]
[1759846232278,3.2078,4658.5,4658.4,1.3334]
[1759846232481,3.2078,4658.5,4658.4,1.3661]
[1759846232682,3.2078,4658.5,4657.6,0.391]
[1759846232683,8.16657865,4658.5,4657.6,1.3449]
[1759846232886,3.2078,4657.7,4657.6,1.3449]
[1759846233082,3.20991935,4657.7,4657.6,1.34678784]
[1759846233286,6.05572123,4657.7,4657.6,1.34678784]
[1759846233685,0.38619,4657.6,4656.8,1.3449]
[1759846233990,3.20991935,4657.7,4657.6,1.3661]
[1759846234392,0.00211935,4657.7,4657.6,1.3661]
[1759846235086,0.00211935,4657.7,4657.6,1.75229]
[1759846235286,0.00211935,4657.7,4657.6,1.36800389]
[1759846235486,0.00211935,4657.7,4657.6,6.36800389]
[1759846235694,3.2078,4658.0,4657.9,0.9539]
[1759846236186,5.37201841,4658.0,4657.9,0.9539]
[1759846236388,0.38617,4657.9,4657.7,0.9539]
[1759846236699,3.2078,4658.0,4657.9,1.34007]
[1759846236888,3.2078,4658.5,4658.1,0.38614]
[1759846237086,3.2078,4658.5,4658.4,1.3661]
[1759846237087,3.04627426,4658.5,4658.4,1.3661]
[1759846237287,2.84658541,4658.0,4657.9,0.38617]
[1759846237595,0.228,4659.6,4659.2,1.3661]
[1759846237596,3.4358,4659.6,4659.2,1.3661]
[1759846237892,3.2078,4659.3,4659.2,1.3661]
[1759846238092,5.37201841,4659.3,4659.2,1.3661]
[1759846238289,3.2078,4659.3,4659.2,1.3661]
[1759846238489,3.2078,4659.3,4659.2,1.3699]
[1759846238686,0.00176491,4659.6,4659.2,6.3699]
[1759846238886,3.2078,4659.3,4659.2,0.4122]
[1759846239284,3.2078,4659.3,4659.2,5.4122]
[1759846239489,0.38611,4658.6,4658.5,0.9577]
[1759846239689,0.38613,4658.4,4657.7,0.9577]
[1759846239892,3.2078,4658.3,4657.7,0.9577]
[1759846240089,3.2078,4657.8,4657.7,0.9577]
[1759846240290,5.75819841,4657.8,4656.8,1.3487]
[1759846240498,2.16421841,4657.7,4657.6,3.89e-06]
[1759846240994,2.74631531,4657.7,4657.6,1.35400389]
[1759846241495,3.2078,4657.8,4657.7,0.9577]
[1759846242086,5.37201841,4657.8,4657.7,0.9577]
[1759846242287,0.38622,4657.3,4656.9,0.9577]
[1759846242499,3.2078,4657.0,4656.9,0.9577]
[1759846242691,5.37201841,4657.0,4656.9,0.9577]
[1759846242886,8.15097938,4657.0,4656.9,0.9577]
[1759846243088,5.37201841,4657.0,4656.9,0.9577]
[1759846243291,5.37201841,4657.0,4656.0,0.3963]
[1759846243292,0.96563,4656.9,4656.1,0.9577]
[1759846243490,3.59411,4656.2,4656.1,0.9577]
[1759846243690,3.59411,4656.2,4656.0,0.3963]
[1759846243990,2.55052841,4656.1,4656.0,0.3963]
[1759846244193,2.55052841,4656.1,4656.0,1.354]
[1759846244394,0.00251312,4656.1,4656.0,1.35601448]
[1759846244893,2.55304153,4656.1,4656.0,0.39831448]
[1759846245097,2.55304153,4656.1,4656.0,0.00201448]
[1759846245295,11.18126109,4656.1,4655.2,0.3963]
[1759846245495,3.2078,4655.3,4655.2,1.354]
[1759846245993,0.00251312,4656.1,4656.0,0.78262]
[1759846246194,0.38882312,4656.1,4656.0,1.354]
[1759846246402,7.78104153,4656.1,4656.0,0.39865365]
[1759846246589,0.38645,4654.6,4654.0,3.2078]
[1759846246792,0.38644,4654.7,4654.5,0.9577]
[1759846246990,0.96617,4654.3,4653.1,0.9577]
[1759846247204,3.2078,4653.8,4653.6,1.354]
[1759846247506,3.2078,4655.0,4654.4,0.78276]
[1759846247691,3.2078,4655.0,4654.9,1.34411]
[1759846247692,3.19947446,4655.0,4654.9,1.34411]
[1759846248000,3.2078,4656.0,4655.3,0.9577]
[1759846248300,0.38635,4655.8,4655.2,0.3963]
[1759846248498,3.2078,4656.0,4655.3,0.9577]
[1759846249001,2.55058841,4655.4,4654.4,1.354]
[1759846249192,9.65758,4656.4,4654.4,1.354]
[1759846249193,3.21031312,4656.1,4654.5,1.1857]
[1759846249394,3.2078,4655.6,4655.3,0.9577]
[1759846249701,2.95979826,4655.5,4654.4,0.3963]
[1759846249894,2.16421841,4654.5,4654.4,1.354]
[1759846250102,5.37201841,4654.7,4654.4,1.354]
[1759846250298,3.2078,4655.2,4654.7,0.9577]
[1759846250496,3.2078,4655.8,4655.7,0.9577]
[1759846250793,0.00251312,4656.1,4656.0,1.354]
[1759846250995,3.2078,4656.8,4656.7,0.38627]
[1759846251300,9.65078,4659.6,4656.1,0.9577]
[1759846251301,3.4358,4658.6,4658.5,0.9577]
[1759846251599,2.88146857,4658.6,4658.5,0.9577]
[1759846251898,0.96507,4659.6,4658.6,0.9577]
[1759846252098,0.38612,4658.5,4658.4,0.3963]
[1759846252302,0.38616,4658.1,4657.7,0.9577]
[1759846252598,0.38624,4657.0,4655.2,0.3963]
[1759846252802,0.96542,4657.9,4655.5,0.9577]
[1759846252803,0.38631,4656.1,4655.5,0.9577]
[1759846253002,2.39221841,4656.1,4655.5,0.9577]
[1759846253201,2.55057841,4655.6,4655.5,0.00225634]
[1759846253396,2.16421841,4655.6,4655.5,0.00225634]
[1759846253602,0.61435,4655.7,4655.6,0.9577]
[1759846253798,0.61435,4655.7,4654.4,0.3963]
[1759846253799,4.89949974,4655.6,4654.4,0.3963]
[1759846253996,0.38639,4655.2,4654.4,1.354]
[1759846254195,2.16421841,4655.1,4654.5,0.9577]
[1759846254404,2.73528133,4655.1,4654.5,0.9577]
[1759846254702,0.00160342,4656.1,4654.6,3.2078]
[1759846254901,0.38632,4656.0,4655.8,0.9577]
[1759846255107,2.81231158,4656.0,4655.9,0.9577]
[1759846255309,3.2078,4657.2,4656.0,0.9577]
[1759846255606,3.2078,4657.7,4657.5,0.3963]
[1759846255802,0.228,4658.2,4657.8,0.38617]
[1759846255803,3.2078,4658.2,4657.8,0.38617]
[1759846256109,3.2078,4658.9,4658.7,0.3861]
[1759846256407,0.7525,4660.6,4659.4,0.9577]
[1759846256408,2.81317206,4660.6,4659.4,0.9577]
[1759846256712,0.38597,4660.3,4658.7,0.23069444]
[1759846256900,0.45889062,4660.2,4658.7,0.00269444]
[1759846257100,0.5245,4658.8,4658.7,0.00269444]
[1759846257400,0.5245,4658.8,4655.8,9.65859]
[1759846257401,5.9912626,4658.8,4656.8,0.9577]
[1759846257598,2.16421841,4657.8,4657.0,0.38623]
[1759846257802,0.38622,4657.4,4656.4,0.228]
[1759846258003,3.01259508,4657.7,4656.7,3.2078]
[1759846258209,3.2078,4657.9,4656.8,1.1857]
[1759846258406,3.2078,4659.0,4657.8,3.2078]
[1759846258707,2.81117748,4659.7,4658.8,4.1655]
[1759846258903,0.45972902,4659.6,4659.5,0.9577]
[1759846259112,0.45972902,4659.6,4659.4,3.2078]
[1759846259300,0.45972902,4659.5,4659.4,4.55154]
[1759846259497,3.2078,4661.1,4659.6,0.96507]
[1759846259704,1.49517875,4661.7,4660.5,3.2078]
[1759846259905,0.5218,4661.5,4660.5,2.1699]
[1759846260108,0.38606,4659.2,4659.0,0.3963]
[1759846260406,0.38606,4659.2,4657.5,0.17412893]
[1759846260407,0.9652,4659.0,4658.1,3.2078]
[1759846260603,0.9652,4659.0,4658.0,1.354]
[1759846260604,0.38613,4658.4,4658.0,0.3963]
[1759846260909,3.2078,4658.6,4658.1,0.9577]
[1759846260910,2.16421841,4658.2,4658.1,0.9577]
[1759846261205,0.00209236,4659.0,4658.8,0.38609]
[1759846261398,0.00209236,4659.0,4658.2,0.9577]
[1759846261399,3.2078,4659.9,4659.7,0.38601]
[1759846261603,1.88107875,4661.1,4661.0,1.354]
[1759846261909,3.25311317,4661.1,4661.0,0.3963]
[1759846262205,4.95709735,4661.1,4661.0,0.3963]
[1759846262404,0.38594,4660.7,4660.0,0.3963]
[1759846262605,10.64816481,4661.1,4660.0,0.3963]
[1759846262606,0.38596,4660.4,4660.0,0.3963]
[1759846262906,3.02367184,4661.1,4660.0,0.3963]
[1759846262907,0.38598,4660.2,4660.0,0.3963]
[1759846263107,2.16421841,4660.1,4659.0,1.373]
[1759846263305,2.16421841,4659.1,4659.0,0.3963]
[1759846263710,2.16421841,4659.1,4659.0,1.373]
[1759846263906,3.2078,4659.9,4659.1,0.9767]
[1759846264102,3.2078,4659.9,4659.5,0.38603]
[1759846264299,3.2078,4659.9,4659.1,40.8]
[1759846264300,3.2078,4660.9,4660.3,0.38596]
[1759846264510,3.2078,4660.9,4660.7,0.38593]
[1759846264813,3.2078,4660.9,4660.3,0.9767]
[1759846265000,3.2078,4661.0,4660.3,0.9767]
[1759846265210,2.16421841,4660.4,4660.3,0.9767]
[1759846265410,2.55017841,4660.4,4660.2,0.4234]
[1759846265604,2.82072504,4660.4,4660.3,0.9767]
[1759846265809,2.16421841,4660.4,4660.3,0.9767]
[1759846266008,0.38597,4660.3,4660.2,1.4001]
[1759846266205,2.16421841,4660.3,4659.1,0.9767]
[1759846266406,3.2078,4660.1,4659.1,0.9767]
[1759846266614,5.37201841,4659.5,4659.0,0.3963]
[1759846266812,3.59384,4659.5,4659.1,0.9767]
[1759846267117,0.38604,4659.4,4659.1,0.9767]
[1759846267408,5.37201841,4659.5,4659.0,0.3963]
[1759846267708,3.2078,4660.0,4659.3,0.38604]
[1759846267906,2.16421841,4659.5,4659.4,0.9767]
[1759846268105,0.38602,4659.6,4659.4,0.9767]
[1759846268303,0.38607,4659.1,4659.0,0.3963]
[1759846268606,2.16421841,4659.1,4659.0,0.3963]
[1759846268805,2.16421841,4659.1,4658.3,4.1845]
[1759846268806,4.95511647,4659.1,4658.1,0.9767]
[1759846269105,4.95511647,4659.1,4657.7,3.2078]
[1759846269106,2.55036841,4658.1,4658.0,0.00177846]
[1759846269509,2.16421841,4658.1,4658.0,0.97847846]
[1759846269901,0.38614,4658.3,4658.0,0.00177846]
[1759846270108,3.2078,4658.7,4658.4,0.4234]
[1759846270409,3.2078,4659.8,4658.6,4.1845]
[1759846270611,0.38602,4659.6,4659.4,0.9767]
[1759846270816,3.23908011,4659.7,4659.4,0.9767]
[1759846271011,0.38603,4659.5,4659.4,0.9767]
[1759846271318,0.3861,4658.8,4658.7,0.9767]
[1759846271611,3.2078,4659.3,4659.1,0.38606]
[1759846271811,3.2078,4660.0,4659.9,0.386]
[1759846272109,3.2078,4660.0,4659.9,0.9767]
[1759846272308,0.2297929,4661.1,4660.3,0.9767]
[1759846272309,0.38596,4660.5,4660.3,0.9767]
[1759846272504,0.45859851,4660.4,4660.3,1.36266]
[1759846272711,2.80213471,4660.4,4660.3,0.9767]
[1759846272915,3.2078,4660.7,4660.3,0.9767]
[1759846273112,3.2078,4660.7,4660.2,0.4234]
[1759846273414,3.2078,4660.8,4660.2,0.4234]
[1759846273613,3.2078,4660.8,4659.6,3.2078]
[1759846273614,3.2078,4660.3,4659.6,0.38602]
[1759846273803,3.05953548,4660.7,4660.0,0.4234]
[1759846274003,0.228,4660.7,4660.1,0.9767]
[1759846274411,0.38595,4660.5,4660.0,0.6514]
[1759846274609,2.16421841,4660.7,4660.1,0.9767]
[1759846274805,0.2297929,4661.1,4660.8,0.4234]
[1759846274806,0.0017929,4661.1,4660.8,0.4234]
[1759846275009,0.0017929,4661.1,4661.0,0.9767]
[1759846275207,0.0017929,4661.1,4661.0,4.1845]
[1759846275414,0.0017929,4661.1,4661.0,4.4125]
[1759846275714,0.38579,4662.5,4662.4,1.4001]
[1759846275921,0.84398174,4662.5,4662.4,1.4001]
[1759846276108,0.45819174,4662.5,4662.4,1.4001]
[1759846276411,3.2078,4662.6,4662.5,0.9767]
[1759846276616,0.00175884,4662.6,4662.5,0.9784583]
[1759846277415,3.2078,4663.2,4663.1,0.9767]
[1759846277713,3.66604572,4663.2,4663.1,0.9767]
[1759846278116,0.38578,4662.6,4662.5,0.9784583]
[1759846278313,0.00196317,4662.6,4662.5,0.9784583]
[1759846278510,0.38774317,4662.6,4662.5,0.9784583]
[1759846278710,3.59554317,4662.6,4662.5,0.9784583]
[1759846279003,5.75976158,4662.6,4662.5,0.0017583]
[1759846279208,3.20976317,4662.6,4662.5,0.9784583]
[1759846279408,0.00196317,4662.6,4662.5,5.9784583]
[1759846279611,0.00196317,4662.6,4662.5,0.9784583]
[1759846279815,3.20976317,4662.6,4662.5,0.9784583]
[1759846280015,3.20976317,4662.6,4662.5,1.2064583]
[1759846280313,3.20976317,4662.6,4662.5,0.9784583]
[1759846281018,0.00196317,4662.6,4662.5,5.9784583]
[1759846281410,0.00196317,4662.6,4662.5,0.9784583]
[1759846281620,3.20976317,4662.6,4662.5,6.2054583]
[1759846282211,3.20976317,4662.6,4662.5,6.2064583]
[1759846282516,0.00196317,4662.6,4662.5,6.2054583]
[1759846282709,3.2078,4665.4,4664.8,1.4001]
[1759846282911,0.4586203,4665.3,4664.9,0.9767]
[1759846283114,0.4586203,4665.3,4664.8,0.6504]
[1759846283115,3.2078,4665.9,4665.1,0.38556]
[1759846283411,2.16421841,4665.1,4665.0,0.9767]
[1759846283612,2.74056454,4666.1,4665.0,0.9767]
[1759846283613,3.2078,4666.4,4666.0,0.9767]
[1759846283818,3.21002077,4666.4,4666.3,0.9767]
[1759846284015,0.00222077,4666.4,4666.3,0.9767]
[1759846284216,0.46125782,4666.4,4666.3,1.2037]
[1759846284814,3.2078,4667.8,4667.5,0.9767]
[1759846285016,1.7996144,4667.7,4667.5,0.9767]
[1759846285217,5.0074144,4667.8,4667.5,0.9767]
[1759846285416,1.7996144,4667.7,4667.4,0.4234]
[1759846285617,1.7996144,4667.7,4667.5,0.9767]
[1759846285812,2.18663954,4667.7,4667.5,0.9767]
[1759846286117,0.38537,4667.5,4667.4,0.4234]
[1759846286415,0.00166514,4667.7,4667.4,0.4234]
[1759846286713,1.7996144,4667.5,4667.4,0.4234]
[1759846287016,0.00166514,4667.7,4667.4,0.4234]
[1759846287321,0.38536,4667.6,4667.5,0.9767]
[1759846287821,2.1849744,4667.6,4667.5,0.9767]
[1759846288318,0.00166514,4667.7,4667.4,0.6504]
[1759846288518,0.00166514,4667.7,4667.5,0.9767]
[1759846289118,0.00166514,4667.7,4667.6,4.1845]
[1759846289311,0.00166514,4667.7,4667.6,0.9767]
[1759846290118,0.00166514,4667.7,4666.2,0.38547]
[1759846290119,0.38543,4666.8,4666.7,0.9767]
[1759846290815,0.38545,4666.6,4665.8,3.2078]
[1759846291014,2.4120644,4666.6,4666.0,0.97876808]
[1759846291322,1.7996144,4666.1,4665.3,0.9767]
[1759846291517,1.7996144,4665.1,4664.8,0.4234]
[1759846291710,1.7996144,4665.1,4664.9,0.9767]
[1759846291910,0.38557,4665.2,4665.1,0.9767]
[1759846292213,3.2078,4665.5,4665.1,0.9767]
[1759846292412,9.63295,4668.2,4665.6,0.4079]
[1759846292413,0.227,4666.5,4665.6,0.4079]
[1759846292618,0.38551,4665.9,4665.8,1.0527]
[1759846292821,3.2078,4666.1,4665.8,1.0527]
[1759846293009,3.2078,4667.4,4666.5,1.0527]
[1759846293210,3.4348,4667.4,4666.5,1.0527]
[1759846293414,0.38551,4665.8,4665.7,1.0527]
[1759846293722,2.1851244,4665.8,4665.7,1.0527]
[1759846296616,0.96381,4665.7,4665.1,0.00199484]
[1759846296820,9.81988982,4666.0,4665.1,1.05469484]
[1759846296821,2.1851744,4665.2,4665.1,1.05469484]
[1759846297212,0.38554,4665.5,4665.1,0.00199484]
[1759846297419,0.3855,4665.9,4665.6,0.4079]
[1759846297619,0.38552,4665.8,4665.6,0.6349]
[1759846297817,1.7996144,4666.1,4665.7,0.38552]
[1759846298018,1.7996144,4666.2,4666.0,1.0527]
[1759846298319,1.7996144,4666.2,4665.9,0.9689]
[1759846298624,3.2078,4666.9,4665.9,0.9689]
[1759846298820,0.38545,4666.6,4666.5,0.9689]
[1759846299216,2.1850644,4666.6,4666.5,0.9689]
[1759846299917,3.2078,4667.4,4666.9,0.4149]
[1759846300116,1.7996144,4667.0,4666.9,1.3838]
[1759846300315,0.3854,4667.2,4667.1,0.9689]
[1759846300522,3.59318,4667.4,4667.1,0.9689]
[1759846300818,3.2078,4667.4,4667.3,0.9689]
[1759846301023,0.022,4667.9,4667.6,0.4149]
[1759846301318,0.022,4667.9,4667.6,1.3838]
[1759846301319,0.38701514,4667.7,4667.6,1.3838]
[1759846303718,0.022,4667.9,4667.6,6.6098]
[1759846304018,3.2078,4669.0,4668.4,0.9689]
[1759846304219,4.1708,4669.6,4669.1,0.9689]
[1759846304431,1.7996144,4669.3,4669.1,0.9689]
[1759846304622,0.38523,4669.2,4669.1,0.9689]
[1759846304821,0.00188206,4669.2,4669.1,0.97102121]
[1759846305829,0.38529,4668.5,4668.4,0.9689]
[1759846306019,3.59309,4668.5,4668.4,0.9689]
[1759846306325,5.3927044,4668.5,4668.4,0.9689]
[1759846306523,5.3927044,4668.5,4667.6,0.4149]
[1759846306524,0.38535,4667.8,4667.7,0.9689]
[1759846306724,0.38535,4667.8,4667.7,0.97158204]
[1759846306924,2.1849644,4667.8,4667.7,0.97158204]
[1759846307723,3.2078,4668.6,4667.7,0.97158204]
[1759846307918,3.2078,4668.6,4668.4,0.9689]
[1759846307919,0.38529,4668.5,4668.4,0.9689]
[1759846308117,2.1849044,4668.5,4668.4,0.9689]
[1759846309321,0.96315,4668.9,4668.6,0.4149]
[1759846309526,1.7996144,4668.8,4668.7,0.9689]
[1759846309726,5.0074144,4669.1,4668.7,0.9689]
[1759846310123,0.00188206,4669.2,4668.7,0.9689]
[1759846310424,0.00188206,4669.2,4668.9,0.9689]
[1759846310625,0.00188206,4669.2,4669.0,0.9689]
[1759846310922,0.38526,4668.8,4668.7,0.9689]
[1759846311130,0.38526,4668.8,4668.7,1.1949]
[1759846311420,3.2078,4669.1,4668.7,1.1949]
[1759846311626,3.2078,4669.1,4668.8,0.9689]
[1759846311829,0.00188206,4669.2,4668.8,0.9689]
[1759846312026,0.00188206,4669.2,4668.9,0.38525]
[1759846312232,0.38712206,4669.2,4669.0,0.9689]
[1759846312726,0.00188206,4669.2,4669.0,5.9689]
[1759846312926,0.38711206,4669.2,4669.1,1.1939]
[1759846313123,5.39452646,4669.2,4669.1,0.9689]
[1759846313334,4.05414529,4669.2,4669.1,0.9689]
[1759846314025,0.96311,4669.1,4668.6,0.4149]
[1759846314334,5.3926844,4668.7,4668.6,0.4149]
[1759846314626,3.2078,4668.7,4668.6,0.4149]
[1759846314832,0.00188206,4669.2,4668.6,0.4149]
[1759846315324,3.2078,4670.4,4669.8,0.4149]
[1759846315529,1.7996144,4669.9,4669.8,0.4149]
[1759846315732,2.25914327,4669.9,4669.8,0.4149]
[1759846316029,3.66732887,4669.9,4669.3,41.025]
[1759846316237,0.38521,4669.5,4669.4,0.9689]
[1759846316427,3.66732887,4669.5,4669.4,0.9689]
[1759846316626,0.45952887,4669.5,4669.4,1.1939]
[1759846316834,0.00190881,4669.9,4669.8,1.3838]
[1759846317128,0.46168215,4669.9,4669.8,1.3838]
[1759846317722,0.00190881,4669.9,4669.8,1.3838]
[1759846318737,3.2078,4671.9,4671.0,0.38508]
[1759846319037,0.022,4672.9,4671.7,0.9689]
[1759846319038,3.2078,4672.4,4671.7,0.9689]
[1759846319232,3.2078,4672.4,4672.3,0.9689]
[1759846319430,3.2298,4672.9,4672.8,1.3838]
[1759846319635,3.69104932,4672.9,4672.8,1.38570446]
[1759846320137,0.38499,4672.2,4671.5,3.2078]
[1759846320330,3.2078,4671.8,4671.3,0.225]
[1759846320529,0.385,4672.1,4671.3,0.225]
[1759846320724,3.2078,4672.3,4671.3,0.225]
[1759846320725,1.7996144,4671.9,4671.6,0.4149]
[1759846321028,1.7996144,4671.9,4670.4,0.4149]
[1759846321029,0.38512,4670.5,4670.4,0.4149]
[1759846321232,2.1847344,4670.5,4670.4,0.00179938]
[1759846321531,5.3925344,4670.5,4670.4,0.00179938]
[1759846321931,2.1847344,4670.5,4670.4,0.00179938]
[1759846322132,1.7996144,4670.5,4670.4,0.97069938]
[1759846322331,5.7013144,4670.5,4670.4,0.00179938]
[1759846322636,10.7013144,4670.5,4670.4,0.00179938]
[1759846322830,13.50563073,4670.5,4670.4,0.00179938]
[1759846323034,13.50563073,4670.5,4668.8,3.2078]
[1759846323035,1.64876,4669.8,4668.8,3.2078]
[1759846323234,0.38526,4668.9,4668.8,0.9972]
[1759846323442,0.38531,4668.2,4668.1,3.2078]
[1759846323640,2.1849244,4668.2,4668.1,4.205]
[1759846323932,0.38528,4668.7,4668.2,0.9972]
[1759846324240,0.38528,4668.7,4668.2,0.00171644]
[1759846324241,0.38531,4668.4,4668.2,0.00171644]
[1759846324535,2.4854144,4668.3,4668.2,0.00171644]
[1759846324734,1.7996144,4668.3,4668.2,0.00171644]
[1759846325326,5.32001818,4668.3,4668.2,0.00171644]
[1759846325731,0.38541,4667.0,4666.9,3.4328]
[1759846325941,0.38546,4666.5,4666.3,45.005]
[1759846326143,0.38546,4666.5,4665.8,3.2078]
[1759846326335,0.38549,4666.1,4665.9,0.9972]
[1759846326632,0.38551,4665.8,4665.7,40.8]
[1759846326836,1.7996144,4665.8,4665.5,0.6407]
[1759846327034,3.2078,4666.7,4665.8,0.9972]
[1759846327226,1.7996144,4665.9,4665.8,0.9972]
[1759846327740,1.7996144,4665.9,4665.7,0.00220932]
[1759846327741,0.38551,4665.8,4665.7,3.21000932]
[1759846327936,0.38551,4665.8,4665.7,0.99940932]
[1759846328629,0.38551,4665.9,4665.7,0.99940932]
[1759846328830,0.38551,4665.9,4665.7,0.00220932]
[1759846329037,5.32557422,4665.8,4665.7,0.00220932]
[1759846329238,1.7996144,4665.8,4665.7,0.00220932]
[1759846329538,0.96354,4667.0,4665.8,0.9972]
[1759846329834,1.7996144,4666.1,4665.8,0.9972]
[1759846330036,0.225,4666.9,4665.9,0.3855]
[1759846330233,1.7996144,4666.3,4666.2,0.9972]
[1759846330432,1.7996144,4666.3,4665.8,0.9972]
[1759846330433,0.38551,4665.9,4665.8,0.9972]
[1759846330629,0.38549,4666.1,4665.8,0.9972]
[1759846330831,3.2078,4666.8,4666.1,1.38268]
[1759846331036,2.1850544,4666.7,4666.2,0.6407]
[1759846331238,2.1850544,4666.7,4666.4,0.9972]
[1759846331239,1.7996144,4666.7,4666.4,0.9972]
[1759846331834,1.7996144,4666.7,4666.3,3.2078]
[1759846331835,0.38546,4666.4,4666.3,3.2078]
[1759846332038,0.38546,4666.4,4665.7,0.00220932]
[1759846332039,1.07131,4665.8,4665.7,0.00220932]
[1759846332237,2.1851244,4665.8,4665.7,0.00220932]
[1759846332639,0.6858,4667.1,4665.7,0.99940932]
[1759846332839,1.7996144,4665.9,4665.8,0.9972]
[1759846333139,2.77160403,4667.2,4666.3,0.9972]
[1759846333342,2.77160403,4667.6,4666.3,0.9972]
[1759846333343,0.38544,4666.7,4666.4,0.9972]
[1759846333534,0.38544,4666.7,4666.3,3.2078]
[1759846333535,1.07131,4665.8,4665.7,0.00220932]
[1759846333837,1.07131,4665.8,4663.2,0.4157]
[1759846333838,3.4492044,4665.8,4664.4,4.6207]
[1759846334047,0.38554,4665.5,4665.1,0.9972]
[1759846334246,0.38555,4665.4,4665.1,0.9972]
[1759846334546,2.1851444,4665.7,4665.2,0.9972]
[1759846334738,0.00227262,4665.7,4665.6,4.6207]
[1759846334938,12.87661087,4669.4,4665.6,4.6207]
[1759846334939,0.96332,4668.1,4666.2,0.4157]
[1759846335141,0.96332,4668.1,4666.9,0.9972]
[1759846335338,0.3854,4667.2,4666.8,3.6235]
[1759846335543,0.38541,4667.0,4666.9,0.9972]
[1759846335738,1.7996144,4667.1,4666.8,3.8485]
[1759846335942,0.38541,4667.0,4666.9,0.9972]
[1759846336142,0.00272603,4667.1,4666.9,6.38262]
[1759846336347,0.00272603,4667.1,4667.0,0.9972]
[1759846336543,0.00272603,4667.1,4667.0,1.2222]
[1759846337842,0.38545,4666.5,4666.4,41.7972]
[1759846338146,0.38545,4666.5,4666.4,0.9972]